[Event "*** Titled Tuesday Blitz"]
[Site "Chess.com"]
[Date "2021.02.02"]
[Round "1"]
[White "Alexander_Moskalenko"]
[Black "profofchess"]
[Result "1-0"]
[WhiteElo "2791"]
[BlackElo "2411"]
[TimeControl "180+1"]
[EndTime "10:05:21 PST"]
[Termination "Alexander_Moskalenko won on time"]

1. e4 {[%clk 0:02:58]} 1... e6 {[%clk 0:03:00.3]} 2. d3 {[%clk 0:02:56.2]} 2...
c5 {[%clk 0:02:57.2]} 3. Nd2 {[%clk 0:02:57.1]} 3... Nc6 {[%clk 0:02:57.5]} 4.
Ngf3 {[%clk 0:02:56.8]} 4... g6 {[%clk 0:02:57.9]} 5. g3 {[%clk 0:02:57.7]} 5...
Bg7 {[%clk 0:02:58.2]} 6. Bg2 {[%clk 0:02:58.6]} 6... d6 {[%clk 0:02:58.4]} 7.
O-O {[%clk 0:02:59.5]} 7... Nge7 {[%clk 0:02:58.3]} 8. Re1 {[%clk 0:03:00.4]}
8... O-O {[%clk 0:02:56.4]} 9. c3 {[%clk 0:03:01.3]} 9... e5 {[%clk 0:02:56.5]}
10. a3 {[%clk 0:03:00.2]} 10... a5 {[%clk 0:02:54.8]} 11. a4 {[%clk 0:02:59.8]}
11... h6 {[%clk 0:02:45.7]} 12. Nc4 {[%clk 0:02:58.6]} 12... Be6 {[%clk
0:02:43.5]} 13. Na3 {[%clk 0:02:55.9]} 13... f5 {[%clk 0:02:20.3]} 14. Nb5
{[%clk 0:02:54.5]} 14... f4 {[%clk 0:02:00.8]} 15. d4 {[%clk 0:02:52.7]} 15...
fxg3 {[%clk 0:01:42.4]} 16. hxg3 {[%clk 0:02:50.8]} 16... exd4 {[%clk
0:01:34.1]} 17. cxd4 {[%clk 0:02:50.2]} 17... Bg4 {[%clk 0:01:27.9]} 18. dxc5
{[%clk 0:02:46]} 18... dxc5 {[%clk 0:01:27.8]} 19. Qxd8 {[%clk 0:02:38.7]} 19...
Raxd8 {[%clk 0:01:28.7]} 20. Nh2 {[%clk 0:02:38.8]} 20... Be6 {[%clk 0:01:05.9]}
21. Be3 {[%clk 0:02:35.4]} 21... Nd4 {[%clk 0:01:04.6]} 22. Nxd4 {[%clk
0:02:33.8]} 22... cxd4 {[%clk 0:01:02.5]} 23. Bd2 {[%clk 0:02:33.9]} 23... Nc6
{[%clk 0:01:01.6]} 24. f4 {[%clk 0:02:33.8]} 24... d3 {[%clk 0:00:42]} 25. e5
{[%clk 0:02:33]} 25... Bd5 {[%clk 0:00:33.2]} 26. Bxd5+ {[%clk 0:02:29.4]} 26...
Rxd5 {[%clk 0:00:33.3]} 27. Nf3 {[%clk 0:02:29.5]} 27... Rfd8 {[%clk 0:00:30.5]}
28. Re4 {[%clk 0:02:29.4]} 28... Bf8 {[%clk 0:00:29.2]} 29. Kg2 {[%clk
0:02:28.2]} 29... b6 {[%clk 0:00:19.8]} 30. g4 {[%clk 0:02:26.9]} 30... Nd4
{[%clk 0:00:15.8]} 31. Nxd4 {[%clk 0:02:24.6]} 31... Rxd4 {[%clk 0:00:16.7]} 32.
Kf3 {[%clk 0:02:25.3]} 32... Bb4 {[%clk 0:00:13.2]} 33. Bxb4 {[%clk 0:02:22.6]}
33... Rxb4 {[%clk 0:00:13.3]} 34. Rxb4 {[%clk 0:02:22.2]} 34... axb4 {[%clk
0:00:14.2]} 35. Rd1 {[%clk 0:02:21.3]} 35... Kf7 {[%clk 0:00:07.3]} 36. Ke3
{[%clk 0:02:18.2]} 36... Ra8 {[%clk 0:00:03.3]} 37. b3 {[%clk 0:02:15.3]} 37...
Rc8 {[%clk 0:00:02.7]} 38. Rxd3 {[%clk 0:02:15.1]} 38... Ke7 {[%clk 0:00:01.9]}
39. f5 {[%clk 0:02:14.8]} 1-0

[Event "*** Titled Tuesday Blitz"]
[Site "Chess.com"]
[Date "2021.02.02"]
[Round "1"]
[White "Genghis_K"]
[Black "Ave_Mariia"]
[Result "1-0"]
[WhiteElo "2925"]
[BlackElo "2468"]
[TimeControl "180+1"]
[EndTime "10:05:22 PST"]
[Termination "Genghis_K won by resignation"]

1. e4 {[%clk 0:02:56.6]} 1... c5 {[%clk 0:02:59.9]} 2. Nf3 {[%clk 0:02:56.1]}
2... d6 {[%clk 0:03:00.3]} 3. d4 {[%clk 0:02:56.4]} 3... cxd4 {[%clk 0:03:01.1]}
4. Nxd4 {[%clk 0:02:56.9]} 4... Nf6 {[%clk 0:03:01.7]} 5. Nc3 {[%clk 0:02:57.4]}
5... g6 {[%clk 0:03:02.2]} 6. Be3 {[%clk 0:02:57.1]} 6... Bg7 {[%clk 0:03:02.4]}
7. f3 {[%clk 0:02:57.6]} 7... O-O {[%clk 0:03:02.6]} 8. Qd2 {[%clk 0:02:57.8]}
8... Nc6 {[%clk 0:03:03]} 9. O-O-O {[%clk 0:02:57.6]} 9... d5 {[%clk 0:03:03.2]}
10. Nxc6 {[%clk 0:02:57.9]} 10... bxc6 {[%clk 0:03:03.3]} 11. Bh6 {[%clk
0:02:58.6]} 11... Rb8 {[%clk 0:02:59.3]} 12. Bxg7 {[%clk 0:02:52.5]} 12... Kxg7
{[%clk 0:02:59]} 13. exd5 {[%clk 0:02:53]} 13... cxd5 {[%clk 0:02:55.9]} 14.
Nxd5 {[%clk 0:02:53.4]} 14... Qd6 {[%clk 0:02:05]} 15. Qc3 {[%clk 0:02:29.7]}
15... Rd8 {[%clk 0:01:49.2]} 16. Bc4 {[%clk 0:02:21.1]} 16... Be6 {[%clk
0:01:30.9]} 17. Nxf6 {[%clk 0:02:10.4]} 17... Qf4+ {[%clk 0:01:31.2]} 18. Kb1
{[%clk 0:02:10.7]} 18... exf6 {[%clk 0:01:07.8]} 19. Bxe6 {[%clk 0:02:03.7]}
19... fxe6 {[%clk 0:01:08.7]} 20. g3 {[%clk 0:01:51.7]} 20... Qb4 {[%clk
0:00:45]} 21. Qxb4 {[%clk 0:01:37.1]} 21... Rxd1+ {[%clk 0:00:44.9]} 22. Rxd1
{[%clk 0:01:38]} 22... Rxb4 {[%clk 0:00:45.3]} 23. Rd7+ {[%clk 0:01:38.4]} 23...
Kh6 {[%clk 0:00:41.5]} 24. Rxa7 {[%clk 0:01:36.7]} 24... e5 {[%clk 0:00:37.5]}
25. c3 {[%clk 0:01:35.2]} 25... Rb6 {[%clk 0:00:35.6]} 26. a4 {[%clk 0:01:34.8]}
26... f5 {[%clk 0:00:32.6]} 27. Kc2 {[%clk 0:01:34.2]} 27... e4 {[%clk
0:00:30.8]} 28. fxe4 {[%clk 0:01:34.3]} 28... fxe4 {[%clk 0:00:31.7]} 29. Re7
{[%clk 0:01:34.7]} 29... Rf6 {[%clk 0:00:31.9]} 30. Rxe4 {[%clk 0:01:34.1]}
30... Rf2+ {[%clk 0:00:32.3]} 31. Kb3 {[%clk 0:01:32.2]} 31... Rxh2 {[%clk
0:00:33.2]} 32. Rh4+ {[%clk 0:01:27]} 1-0

[Event "*** Titled Tuesday Blitz"]
[Site "Chess.com"]
[Date "2021.02.02"]
[Round "1"]
[White "Andrakhanova"]
[Black "johnathan113"]
[Result "0-1"]
[WhiteElo "2256"]
[BlackElo "2569"]
[TimeControl "180+1"]
[EndTime "10:05:22 PST"]
[Termination "johnathan113 won by resignation"]

1. c4 {[%clk 0:03:00.9]} 1... Nf6 {[%clk 0:02:59.4]} 2. Nc3 {[%clk 0:03:00.6]}
2... g6 {[%clk 0:02:59.3]} 3. g3 {[%clk 0:03:00.8]} 3... c5 {[%clk 0:02:59]} 4.
Bg2 {[%clk 0:03:00.8]} 4... Bg7 {[%clk 0:02:59.4]} 5. Nf3 {[%clk 0:03:01]} 5...
O-O {[%clk 0:03:00]} 6. d4 {[%clk 0:03:01.1]} 6... cxd4 {[%clk 0:03:00.5]} 7.
Nxd4 {[%clk 0:03:02]} 7... Nc6 {[%clk 0:02:59.4]} 8. e3 {[%clk 0:03:00.5]} 8...
Qa5 {[%clk 0:02:42.6]} 9. O-O {[%clk 0:02:53.8]} 9... Ne5 {[%clk 0:02:42.2]} 10.
Qb3 {[%clk 0:02:34.2]} 10... d6 {[%clk 0:02:30.6]} 11. Nd5 {[%clk 0:02:31.3]}
11... Nxd5 {[%clk 0:02:28.2]} 12. Bxd5 {[%clk 0:02:22.9]} 12... Bh3 {[%clk
0:02:22.5]} 13. Bg2 {[%clk 0:02:19.8]} 13... Bxg2 {[%clk 0:02:21.8]} 14. Kxg2
{[%clk 0:02:20.7]} 14... Qa6 {[%clk 0:02:15.8]} 15. Nb5 {[%clk 0:02:20.2]} 15...
Rfc8 {[%clk 0:02:12.5]} 16. Bd2 {[%clk 0:02:16.9]} 16... Qc6+ {[%clk 0:02:08]}
17. f3 {[%clk 0:02:09.3]} 17... Nxc4 {[%clk 0:02:08.3]} 18. Rac1 {[%clk
0:02:05.8]} 18... Nxd2 {[%clk 0:02:05.5]} 19. Rxc6 {[%clk 0:02:02.7]} 19... Nxb3
{[%clk 0:02:05.7]} 20. Rxc8+ {[%clk 0:02:03.6]} 20... Rxc8 {[%clk 0:02:06.2]}
21. axb3 {[%clk 0:02:04.5]} 21... Rc2+ {[%clk 0:02:01.1]} 22. Rf2 {[%clk
0:02:03.9]} 22... Rxf2+ {[%clk 0:01:58.3]} 23. Kxf2 {[%clk 0:02:04.8]} 23... a6
{[%clk 0:01:59.2]} 24. Nd4 {[%clk 0:02:01.6]} 24... Bxd4 {[%clk 0:01:58.1]} 25.
exd4 {[%clk 0:02:01.5]} 25... e5 {[%clk 0:01:58]} 26. d5 {[%clk 0:01:49.2]}
26... f5 {[%clk 0:01:56.1]} 27. g4 {[%clk 0:01:46.4]} 27... Kf7 {[%clk
0:01:53.5]} 28. g5 {[%clk 0:01:45.7]} 28... Ke7 {[%clk 0:01:51.5]} 29. Ke3
{[%clk 0:01:41.4]} 29... Kd7 {[%clk 0:01:51.7]} 30. Kd3 {[%clk 0:01:39.8]} 30...
Kc7 {[%clk 0:01:51.9]} 31. Kc4 {[%clk 0:01:28.6]} 31... Kb6 {[%clk 0:01:44]} 32.
h4 {[%clk 0:01:27.4]} 32... Ka5 {[%clk 0:01:32.2]} 33. b4+ {[%clk 0:01:26.4]}
33... Kb6 {[%clk 0:01:19.6]} 34. b3 {[%clk 0:01:11.9]} 34... e4 {[%clk
0:01:14.9]} 35. fxe4 {[%clk 0:01:05.4]} 35... fxe4 {[%clk 0:01:15.8]} 0-1

[Event "*** Titled Tuesday Blitz"]
[Site "Chess.com"]
[Date "2021.02.02"]
[Round "1"]
[White "Savagelittlemole"]
[Black "Sychev_Klementy"]
[Result "0-1"]
[WhiteElo "2460"]
[BlackElo "2900"]
[TimeControl "180+1"]
[EndTime "10:05:24 PST"]
[Termination "Sychev_Klementy won by resignation"]

1. e4 {[%clk 0:03:00.9]} 1... d6 {[%clk 0:02:54.9]} 2. Nf3 {[%clk 0:02:59.8]}
2... Nf6 {[%clk 0:02:53.2]} 3. Nc3 {[%clk 0:02:59.2]} 3... Nc6 {[%clk
0:02:49.2]} 4. d4 {[%clk 0:02:57.6]} 4... g6 {[%clk 0:02:48.8]} 5. Bb5 {[%clk
0:02:57.2]} 5... a6 {[%clk 0:02:45.8]} 6. Bxc6+ {[%clk 0:02:53.4]} 6... bxc6
{[%clk 0:02:46.7]} 7. h3 {[%clk 0:02:53.7]} 7... Bg7 {[%clk 0:02:46.3]} 8. O-O
{[%clk 0:02:53.8]} 8... O-O {[%clk 0:02:44.5]} 9. Be3 {[%clk 0:02:49.2]} 9...
Rb8 {[%clk 0:02:44.3]} 10. Rb1 {[%clk 0:02:48.3]} 10... Nd7 {[%clk 0:02:44.5]}
11. Ne2 {[%clk 0:02:40.3]} 11... Re8 {[%clk 0:02:37.3]} 12. c3 {[%clk 0:02:38]}
12... e5 {[%clk 0:02:36.8]} 13. dxe5 {[%clk 0:02:32.8]} 13... Nxe5 {[%clk
0:02:35.9]} 14. Nxe5 {[%clk 0:02:31]} 14... Rxe5 {[%clk 0:02:35.7]} 15. Nd4
{[%clk 0:02:22]} 15... Bd7 {[%clk 0:02:31.6]} 16. Qd3 {[%clk 0:02:17.1]} 16...
Qe8 {[%clk 0:02:29.3]} 17. f3 {[%clk 0:02:10.8]} 17... f5 {[%clk 0:02:24.4]} 18.
Bf4 {[%clk 0:02:02.2]} 18... fxe4 {[%clk 0:02:18.8]} 19. Qxa6 {[%clk 0:01:53.4]}
19... Re7 {[%clk 0:01:59.6]} 20. Bg5 {[%clk 0:01:40.1]} 20... Rf7 {[%clk
0:01:51.9]} 21. fxe4 {[%clk 0:01:37]} 21... Rxf1+ {[%clk 0:01:50]} 22. Rxf1
{[%clk 0:01:37.9]} 22... c5 {[%clk 0:01:49.1]} 23. Qc4+ {[%clk 0:01:35.4]} 23...
Kh8 {[%clk 0:01:48.5]} 24. Nf3 {[%clk 0:01:30.1]} 24... Bb5 {[%clk 0:01:48]} 25.
Qd5 {[%clk 0:01:25.1]} 25... Bxf1 {[%clk 0:01:47.8]} 26. Kxf1 {[%clk 0:01:26]}
26... Rxb2 {[%clk 0:01:47]} 27. Bd2 {[%clk 0:01:19.1]} 27... h6 {[%clk
0:01:38.6]} 28. Kg1 {[%clk 0:01:17.1]} 28... Kh7 {[%clk 0:01:34.1]} 29. a3
{[%clk 0:00:56]} 29... Qa4 {[%clk 0:01:31.7]} 30. Nh4 {[%clk 0:00:48.2]} 30...
Qd1+ {[%clk 0:01:23.7]} 31. Kh2 {[%clk 0:00:45.3]} 31... Be5+ {[%clk 0:01:19.1]}
0-1

[Event "*** Titled Tuesday Blitz"]
[Site "Chess.com"]
[Date "2021.02.02"]
[Round "1"]
[White "jefferyx"]
[Black "SilviusTiberius"]
[Result "1-0"]
[WhiteElo "2967"]
[BlackElo "2470"]
[TimeControl "180+1"]
[EndTime "10:05:25 PST"]
[Termination "jefferyx won by resignation"]

1. d4 {[%clk 0:03:00.8]} 1... Nf6 {[%clk 0:03:00]} 2. c4 {[%clk 0:03:01.3]} 2...
e6 {[%clk 0:02:59.8]} 3. Nc3 {[%clk 0:03:01.8]} 3... d5 {[%clk 0:03:00.3]} 4.
Bg5 {[%clk 0:03:01.4]} 4... Be7 {[%clk 0:02:57.1]} 5. e3 {[%clk 0:03:01.6]} 5...
h6 {[%clk 0:02:55.1]} 6. Bh4 {[%clk 0:03:00.8]} 6... O-O {[%clk 0:02:55.5]} 7.
Bd3 {[%clk 0:03:00.9]} 7... c5 {[%clk 0:02:43.9]} 8. dxc5 {[%clk 0:02:58.8]}
8... Na6 {[%clk 0:02:41.9]} 9. cxd5 {[%clk 0:02:50.4]} 9... Nxc5 {[%clk
0:02:40.7]} 10. Bc2 {[%clk 0:02:31.9]} 10... Nxd5 {[%clk 0:02:40]} 11. Bxe7
{[%clk 0:02:32.8]} 11... Nxe7 {[%clk 0:02:39.3]} 12. Qg4 {[%clk 0:02:21.4]}
12... Nd3+ {[%clk 0:02:23.9]} 13. Ke2 {[%clk 0:02:16.4]} 13... e5 {[%clk
0:02:11.2]} 14. Qc4 {[%clk 0:02:06.8]} 14... Nxb2 {[%clk 0:01:46.7]} 15. Qb3
{[%clk 0:02:06.7]} 15... Be6 {[%clk 0:01:37.3]} 16. Qxb2 {[%clk 0:02:06.8]}
16... Rc8 {[%clk 0:01:27]} 17. Rc1 {[%clk 0:02:06.7]} 17... Qa5 {[%clk
0:01:22.5]} 18. Bb3 {[%clk 0:01:58.6]} 18... Rc6 {[%clk 0:00:36.4]} 19. Bxe6
{[%clk 0:01:48.1]} 19... Rxe6 {[%clk 0:00:30.4]} 20. Nf3 {[%clk 0:01:46.7]}
20... Rb6 {[%clk 0:00:22]} 21. Qd2 {[%clk 0:01:44.6]} 21... Qa6+ {[%clk
0:00:19]} 22. Ke1 {[%clk 0:01:43.7]} 22... Rc6 {[%clk 0:00:17.1]} 23. Nxe5
{[%clk 0:01:43.5]} 23... Re6 {[%clk 0:00:13.1]} 24. Nf3 {[%clk 0:01:41.3]} 24...
Rc8 {[%clk 0:00:12.4]} 25. Nd4 {[%clk 0:01:41]} 25... Rg6 {[%clk 0:00:11.2]} 26.
f3 {[%clk 0:01:40.2]} 26... Qa3 {[%clk 0:00:11.5]} 27. Kf2 {[%clk 0:01:40]}
27... Rb6 {[%clk 0:00:09.8]} 28. Ncb5 {[%clk 0:01:39.7]} 1-0

[Event "*** Titled Tuesday Blitz"]
[Site "Chess.com"]
[Date "2021.02.02"]
[Round "1"]
[White "Firstov"]
[Black "K_A_S_T_O_R"]
[Result "0-1"]
[WhiteElo "2394"]
[BlackElo "2755"]
[TimeControl "180+1"]
[EndTime "10:05:30 PST"]
[Termination "K_A_S_T_O_R won by resignation"]

1. b3 {[%clk 0:02:57.8]} 1... c5 {[%clk 0:02:59.3]} 2. Bb2 {[%clk 0:02:58.7]}
2... d5 {[%clk 0:02:59.4]} 3. e3 {[%clk 0:02:59]} 3... a6 {[%clk 0:02:58.6]} 4.
f4 {[%clk 0:02:58.4]} 4... Nc6 {[%clk 0:02:57.9]} 5. Nf3 {[%clk 0:02:58.2]} 5...
Bg4 {[%clk 0:02:56.6]} 6. h3 {[%clk 0:02:57.2]} 6... Bxf3 {[%clk 0:02:56.6]} 7.
Qxf3 {[%clk 0:02:58.1]} 7... Nf6 {[%clk 0:02:56.8]} 8. d3 {[%clk 0:02:54.1]}
8... e6 {[%clk 0:02:55.7]} 9. g4 {[%clk 0:02:51.3]} 9... d4 {[%clk 0:02:49.7]}
10. e4 {[%clk 0:02:49.1]} 10... e5 {[%clk 0:02:45.6]} 11. f5 {[%clk 0:02:43.8]}
11... Nd7 {[%clk 0:02:43.5]} 12. Bg2 {[%clk 0:02:28.3]} 12... Be7 {[%clk
0:02:42.5]} 13. O-O {[%clk 0:02:21]} 13... Bg5 {[%clk 0:02:41.9]} 14. Bc1 {[%clk
0:02:15.2]} 14... Bxc1 {[%clk 0:02:41.3]} 15. Rxc1 {[%clk 0:02:14.4]} 15... Qg5
{[%clk 0:02:41.2]} 16. Rd1 {[%clk 0:02:04.3]} 16... h5 {[%clk 0:02:39.2]} 17.
gxh5 {[%clk 0:01:59.5]} 17... Qxh5 {[%clk 0:02:36]} 18. Qxh5 {[%clk 0:01:57.9]}
18... Rxh5 {[%clk 0:02:35.3]} 19. Nd2 {[%clk 0:01:56.9]} 19... Ke7 {[%clk
0:02:32.1]} 20. a3 {[%clk 0:01:53.7]} 20... Rah8 {[%clk 0:02:28.9]} 21. Nf3
{[%clk 0:01:49.6]} 21... Kd6 {[%clk 0:02:26.8]} 22. Kf2 {[%clk 0:01:48.4]} 22...
Nf6 {[%clk 0:02:25.5]} 23. Rg1 {[%clk 0:01:47.6]} 23... R5h6 {[%clk 0:02:21.6]}
24. Bf1 {[%clk 0:01:45]} 24... Nh5 {[%clk 0:02:21.2]} 25. h4 {[%clk 0:01:30.6]}
25... g6 {[%clk 0:02:17.3]} 26. fxg6 {[%clk 0:01:28.6]} 26... Rxg6 {[%clk
0:02:16.3]} 27. Rxg6+ {[%clk 0:01:26.6]} 27... fxg6 {[%clk 0:02:17.2]} 28. Bh3
{[%clk 0:01:21.5]} 28... Nf4 {[%clk 0:02:15.9]} 29. Bg4 {[%clk 0:01:20.4]} 29...
b5 {[%clk 0:02:13.2]} 30. Rh1 {[%clk 0:01:16]} 30... c4 {[%clk 0:02:00.7]} 31.
dxc4 {[%clk 0:00:41.2]} 31... bxc4 {[%clk 0:02:01.6]} 32. bxc4 {[%clk
0:00:41.1]} 32... Rb8 {[%clk 0:01:58.4]} 33. h5 {[%clk 0:00:38]} 33... gxh5
{[%clk 0:01:57.4]} 34. Bxh5 {[%clk 0:00:37.9]} 34... Rb2 {[%clk 0:01:57.5]} 35.
Ne1 {[%clk 0:00:34.4]} 35... d3 {[%clk 0:01:55.7]} 36. Ke3 {[%clk 0:00:30.9]}
36... dxc2 {[%clk 0:01:55.3]} 37. Kd2 {[%clk 0:00:30.9]} 37... Nd4 {[%clk
0:01:55.4]} 38. Bf7 {[%clk 0:00:19.8]} 38... Nb3+ {[%clk 0:01:51.8]} 0-1

[Event "*** Titled Tuesday Blitz"]
[Site "Chess.com"]
[Date "2021.02.02"]
[Round "1"]
[White "Taktikmonster"]
[Black "chessasuke"]
[Result "0-1"]
[WhiteElo "2309"]
[BlackElo "2614"]
[TimeControl "180+1"]
[EndTime "10:05:30 PST"]
[Termination "chessasuke won by resignation"]

1. e4 {[%clk 0:02:57.9]} 1... c5 {[%clk 0:02:59.5]} 2. Nf3 {[%clk 0:02:57.8]}
2... e6 {[%clk 0:02:58.6]} 3. d4 {[%clk 0:02:58.4]} 3... cxd4 {[%clk 0:02:58.9]}
4. Nxd4 {[%clk 0:02:59.3]} 4... Nc6 {[%clk 0:02:58.9]} 5. Nc3 {[%clk 0:02:59.6]}
5... a6 {[%clk 0:02:59.3]} 6. Be2 {[%clk 0:02:58.5]} 6... Qc7 {[%clk 0:02:59.4]}
7. Be3 {[%clk 0:02:58.8]} 7... d6 {[%clk 0:02:57.9]} 8. f4 {[%clk 0:02:51.5]}
8... Nf6 {[%clk 0:02:57.6]} 9. g4 {[%clk 0:02:48.3]} 9... Be7 {[%clk 0:02:56.1]}
10. g5 {[%clk 0:02:47.9]} 10... Nd7 {[%clk 0:02:56.3]} 11. Qd2 {[%clk
0:02:43.4]} 11... Na5 {[%clk 0:02:50]} 12. b3 {[%clk 0:02:10.3]} 12... b5 {[%clk
0:02:49.4]} 13. a4 {[%clk 0:02:07.5]} 13... b4 {[%clk 0:02:44.3]} 14. Na2 {[%clk
0:02:07.6]} 14... Bb7 {[%clk 0:02:42.3]} 15. Bd3 {[%clk 0:01:57.9]} 15... Nc5
{[%clk 0:02:42.1]} 16. Qxb4 {[%clk 0:01:51.9]} 16... Nxe4 {[%clk 0:02:34.1]} 17.
Bxe4 {[%clk 0:01:45.7]} 17... Bxe4 {[%clk 0:02:35]} 18. Nxe6 {[%clk 0:01:45.9]}
18... fxe6 {[%clk 0:02:33]} 19. Qxe4 {[%clk 0:01:45.3]} 19... O-O {[%clk
0:02:20.6]} 20. Qxe6+ {[%clk 0:01:41.8]} 20... Kh8 {[%clk 0:02:20.9]} 21. O-O-O
{[%clk 0:01:29.4]} 21... Rfc8 {[%clk 0:02:01.2]} 22. c3 {[%clk 0:00:51.3]} 22...
Rab8 {[%clk 0:01:52.3]} 23. b4 {[%clk 0:00:43.5]} 23... Rxb4 {[%clk 0:01:35.6]}
24. Kc2 {[%clk 0:00:17.7]} 24... Rxa4 {[%clk 0:01:28.6]} 25. f5 {[%clk
0:00:16.4]} 25... Rxa2+ {[%clk 0:01:21.5]} 26. Qxa2 {[%clk 0:00:17.3]} 26...
Qxc3+ {[%clk 0:01:21.9]} 27. Kb1 {[%clk 0:00:17.5]} 27... Rb8+ {[%clk
0:01:21.7]} 0-1

[Event "*** Titled Tuesday Blitz"]
[Site "Chess.com"]
[Date "2021.02.02"]
[Round "1"]
[White "publicaccountcze"]
[Black "joshdaruca"]
[Result "0-1"]
[WhiteElo "2388"]
[BlackElo "2741"]
[TimeControl "180+1"]
[EndTime "10:05:33 PST"]
[Termination "joshdaruca won on time"]

1. d4 {[%clk 0:02:43.1]} 1... Nf6 {[%clk 0:02:58.9]} 2. c4 {[%clk 0:02:43.4]}
2... e6 {[%clk 0:02:59.1]} 3. Nc3 {[%clk 0:02:43.5]} 3... d5 {[%clk 0:02:58]} 4.
cxd5 {[%clk 0:02:41.8]} 4... Nxd5 {[%clk 0:02:58.9]} 5. e4 {[%clk 0:02:39.4]}
5... Nxc3 {[%clk 0:02:58.7]} 6. bxc3 {[%clk 0:02:39.7]} 6... c5 {[%clk
0:02:59.6]} 7. Nf3 {[%clk 0:02:38.2]} 7... cxd4 {[%clk 0:02:59.1]} 8. cxd4
{[%clk 0:02:36.7]} 8... Bb4+ {[%clk 0:02:59.2]} 9. Bd2 {[%clk 0:02:35.9]} 9...
Bxd2+ {[%clk 0:02:59.7]} 10. Qxd2 {[%clk 0:02:35.6]} 10... O-O {[%clk
0:03:00.6]} 11. Be2 {[%clk 0:02:34.9]} 11... b6 {[%clk 0:02:55.7]} 12. O-O
{[%clk 0:02:32.6]} 12... Bb7 {[%clk 0:02:56.1]} 13. Qe3 {[%clk 0:02:31.4]} 13...
Nd7 {[%clk 0:02:55.2]} 14. Rfd1 {[%clk 0:02:29.6]} 14... Re8 {[%clk 0:02:55.1]}
15. Rac1 {[%clk 0:02:28.7]} 15... Rc8 {[%clk 0:02:55.6]} 16. Rxc8 {[%clk
0:02:26.9]} 16... Qxc8 {[%clk 0:02:56.5]} 17. Rc1 {[%clk 0:02:26.2]} 17... Qa8
{[%clk 0:02:55]} 18. Bb5 {[%clk 0:02:24.2]} 18... Rd8 {[%clk 0:02:53.4]} 19. Bd3
{[%clk 0:02:06]} 19... Rc8 {[%clk 0:02:46.9]} 20. Rxc8+ {[%clk 0:01:42.8]} 20...
Qxc8 {[%clk 0:02:47.8]} 21. Qe2 {[%clk 0:01:38]} 21... Nf6 {[%clk 0:02:44.4]}
22. Nd2 {[%clk 0:01:33.2]} 22... Qc3 {[%clk 0:02:43.9]} 23. e5 {[%clk 0:01:28]}
23... Nd5 {[%clk 0:02:39.1]} 24. Ne4 {[%clk 0:01:25.6]} 24... Qa1+ {[%clk
0:02:37]} 25. Qf1 {[%clk 0:01:24]} 25... Qxd4 {[%clk 0:02:37.4]} 26. Nd6 {[%clk
0:01:21.8]} 26... Bc6 {[%clk 0:02:36.5]} 27. h3 {[%clk 0:01:11.9]} 27... Nf4
{[%clk 0:02:35.6]} 28. Qc1 {[%clk 0:00:13.8]} 28... Nxd3 {[%clk 0:02:26.4]} 29.
Qxc6 {[%clk 0:00:12.8]} 29... Qxf2+ {[%clk 0:02:26.5]} 30. Kh2 {[%clk
0:00:12.5]} 30... Qf4+ {[%clk 0:02:24]} 31. Kg1 {[%clk 0:00:11.6]} 31... Qe3+
{[%clk 0:02:19.9]} 32. Kh1 {[%clk 0:00:05.4]} 32... Qe1+ {[%clk 0:02:20.2]} 33.
Kh2 {[%clk 0:00:04.9]} 33... Qxe5+ {[%clk 0:02:21.1]} 34. Kh1 {[%clk 0:00:03.3]}
34... h6 {[%clk 0:02:03.3]} 35. Qc8+ {[%clk 0:00:01.9]} 35... Kh7 {[%clk
0:02:02.6]} 36. Qf8 {[%clk 0:00:01.6]} 36... Nf2+ {[%clk 0:01:59.9]} 0-1

[Event "*** Titled Tuesday Blitz"]
[Site "Chess.com"]
[Date "2021.02.02"]
[Round "1"]
[White "Gulkov_Igor"]
[Black "RaneshRatnesan"]
[Result "1-0"]
[WhiteElo "2518"]
[BlackElo "2165"]
[TimeControl "180+1"]
[EndTime "10:05:34 PST"]
[Termination "Gulkov_Igor won by resignation"]

1. Nf3 {[%clk 0:03:00.3]} 1... Nf6 {[%clk 0:02:58.7]} 2. c4 {[%clk 0:02:59.6]}
2... g6 {[%clk 0:02:56.4]} 3. Nc3 {[%clk 0:02:58.9]} 3... Bg7 {[%clk 0:02:56.5]}
4. e4 {[%clk 0:02:58.3]} 4... d6 {[%clk 0:02:57]} 5. d4 {[%clk 0:02:57.7]} 5...
O-O {[%clk 0:02:57.2]} 6. Be2 {[%clk 0:02:57.5]} 6... Nbd7 {[%clk 0:02:56.8]} 7.
O-O {[%clk 0:02:56.4]} 7... e5 {[%clk 0:02:56.8]} 8. Re1 {[%clk 0:02:56.2]} 8...
Re8 {[%clk 0:02:48.4]} 9. Bf1 {[%clk 0:02:55.1]} 9... exd4 {[%clk 0:02:43.3]}
10. Nxd4 {[%clk 0:02:54.2]} 10... Ne5 {[%clk 0:02:43.3]} 11. f3 {[%clk
0:02:53.3]} 11... a6 {[%clk 0:02:37.3]} 12. Be3 {[%clk 0:02:51.4]} 12... Rb8
{[%clk 0:02:29.5]} 13. Qd2 {[%clk 0:02:42.4]} 13... Bd7 {[%clk 0:02:06.4]} 14.
Nb3 {[%clk 0:02:36.8]} 14... Nc6 {[%clk 0:02:03.4]} 15. Nd5 {[%clk 0:02:35.2]}
15... Be6 {[%clk 0:01:53.9]} 16. Rac1 {[%clk 0:02:30.1]} 16... Nd7 {[%clk
0:01:47.1]} 17. Red1 {[%clk 0:02:27.3]} 17... b6 {[%clk 0:01:35.6]} 18. Bg5
{[%clk 0:02:21.9]} 18... f6 {[%clk 0:01:33.6]} 19. Be3 {[%clk 0:02:20.2]} 19...
a5 {[%clk 0:01:30.8]} 20. Nd4 {[%clk 0:02:17.2]} 20... Nxd4 {[%clk 0:01:29]} 21.
Bxd4 {[%clk 0:02:15.9]} 21... Ne5 {[%clk 0:01:28.8]} 22. b3 {[%clk 0:02:13.7]}
22... f5 {[%clk 0:01:19.3]} 23. exf5 {[%clk 0:02:10.8]} 23... Bxf5 {[%clk
0:01:19.1]} 24. Ne3 {[%clk 0:02:04.8]} 24... Bd7 {[%clk 0:01:09.2]} 25. f4
{[%clk 0:02:03.2]} 25... Ng4 {[%clk 0:00:48.8]} 26. Nxg4 {[%clk 0:02:02]} 26...
Bxg4 {[%clk 0:00:47.5]} 27. Re1 {[%clk 0:02:01.6]} 27... Qd7 {[%clk 0:00:31.3]}
28. Bxg7 {[%clk 0:01:53.6]} 28... Qxg7 {[%clk 0:00:32.2]} 29. g3 {[%clk
0:01:36.9]} 29... Re6 {[%clk 0:00:20]} 30. Bg2 {[%clk 0:01:34.9]} 30... Rbe8
{[%clk 0:00:19.3]} 31. Bd5 {[%clk 0:01:33]} 1-0